bitfinex/quotes_ETHUSD_20240825
["timestamp","ask_amount","ask_price","bid_price","bid_amount"]
[1724600084958,6.01307,2767.5,2766.6,3.61445]
[1724600085130,6.4345212,2767.5,2766.6,3.61445]
[1724600085466,6.4345212,2767.5,2766.4,2.3166]
[1724600085467,6.4345212,2767.5,2766.4,5.9313]
[1724600085620,6.4345212,2767.5,2766.5,3.61463]
[1724600087728,10.0480112,2767.5,2766.5,3.61463]
[1724600087933,1.06493032,2767.4,2766.5,3.61463]
[1724600088164,4.67844032,2767.4,2766.5,3.61463]
[1724600088560,3.61384,2767.2,2766.1,7.23024]
[1724600088776,11.07384,2767.2,2766.1,3.61509]
[1724600088956,0.588034,2767.1,2766.1,4.0127527]
[1724600089659,4.201924,2767.1,2766.1,4.0127527]
[1724600089859,0.588034,2767.1,2766.1,4.0127527]
[1724600090066,1.1661874,2767.0,2766.1,4.0127527]
[1724600090692,1.1661874,2767.0,2766.2,3.61504]
[1724600090868,2.2665,2766.9,2766.2,3.61504]
[1724600091565,2.2665,2766.9,2766.0,3.61523]
[1724600093095,2.2665,2766.9,2766.1,3.61509]
[1724600093389,0.34326874,2766.8,2766.1,3.61509]
[1724600093594,0.34326874,2766.8,2765.8,3.61549]
[1724600093954,0.34326874,2766.8,2766.0,3.61532]
[1724600094290,2.2665,2766.7,2765.9,3.61534]
[1724600094460,2.52747687,2766.7,2765.9,3.61534]
[1724600094658,2.52747687,2766.7,2766.0,3.61529]
[1724600095400,2.52747687,2766.7,2765.8,3.61549]
[1724600095401,2.52747687,2766.7,2765.3,0.56672559]
[1724600095628,7.46,2766.5,2765.8,3.61551]
[1724600096338,7.46,2766.5,2765.8,3.61549]
[1724600096923,7.46,2766.5,2765.8,7.23096]
[1724600097131,7.46,2766.5,2765.9,3.61545]
[1724600097431,7.46,2766.5,2765.6,3.61577]
[1724600097628,7.46,2766.5,2766.1,3.61509]
[1724600097791,7.46,2766.5,2765.9,3.61534]
[1724600098204,7.46,2766.5,2766.3,3.61493]
[1724600098405,7.46,2766.5,2765.8,3.61559]
[1724600098406,7.46,2766.5,2766.4,3.6148]
[1724600098691,7.46,2766.5,2766.4,7.59108]
[1724600099031,2.2665,2767.2,2766.8,3.6142]
[1724600099192,2.2665,2767.2,2766.4,3.61477]
[1724600100151,2.2665,2767.2,2766.3,3.61484]
[1724600100296,2.2665,2767.2,2766.4,3.61477]
[1724600100496,0.22665,2767.1,2766.3,3.61493]
[1724600100694,0.22665,2767.1,2766.2,3.61501]
[1724600100695,0.22665,2767.1,2766.4,3.61478]
[1724600101963,0.22665,2767.1,2766.0,3.61522]
[1724600102164,2.2665,2767.0,2766.1,3.61519]
[1724600102382,2.2665,2767.0,2766.3,3.61491]
[1724600102661,1.356713,2766.9,2766.1,3.6151]
[1724600102811,1.356713,2766.9,2765.9,3.61536]
[1724600103022,2.2665,2766.8,2765.9,3.61536]
[1724600103290,0.7237443,2766.7,2765.9,7.23072]
[1724600103488,0.7237443,2766.7,2765.9,3.61536]
[1724600104231,2.2665,2766.6,2765.9,3.61536]
[1724600105266,2.2665,2766.6,2765.7,3.61567]
[1724600105504,2.2665,2766.4,2765.7,3.61561]
[1724600105727,2.2665,2766.4,2765.3,2.92832559]
[1724600105728,2.2665,2766.4,2765.5,3.61587]
[1724600105923,2.2665,2766.4,2765.3,4.18288559]
[1724600105924,2.4959,2766.2,2765.3,4.18288559]
[1724600106072,2.4959,2766.2,2764.7,6.25117301]
[1724600106271,7.46,2766.0,2764.7,2.86166036]
[1724600106511,7.46,2766.0,2765.3,3.61615]
[1724600106715,7.46,2766.0,2765.5,3.61592]
[1724600107077,8.45559,2766.0,2765.5,3.61592]
[1724600107284,8.45559,2766.0,2765.5,7.23181]
[1724600107497,8.45559,2766.0,2765.6,3.61576]
[1724600108278,7.46,2766.0,2765.8,3.61556]
[1724600108528,7.46,2766.0,2765.7,3.61563]
[1724600108931,7.46,2766.0,2765.6,3.61573]
[1724600109098,7.46,2766.0,2765.8,3.61546]
[1724600109433,7.46,2766.0,2765.9,3.61545]
[1724600109583,2.79492443,2766.5,2766.0,3.6153]
[1724600109784,0.27949244,2766.4,2766.1,3.61519]
[1724600110079,2.79492443,2766.5,2766.1,3.61519]
[1724600110359,14.7059,2766.9,2766.5,3.61457]
[1724600110477,7.46,2767.0,2766.6,3.61445]
[1724600110683,8.206,2767.0,2766.5,3.61457]
[1724600110905,8.206,2767.0,2766.5,7.22914]
[1724600111104,8.206,2767.0,2766.5,3.61457]
[1724600111436,8.206,2767.0,2766.6,3.61443]
[1724600111645,7.46,2767.0,2766.5,3.61457]
[1724600111825,7.46,2767.0,2766.6,3.6145]
[1724600112137,7.46,2767.0,2766.3,7.22972]
[1724600112356,7.46,2767.0,2766.3,3.61485]
[1724600112647,7.46,2767.0,2766.1,3.61515]
[1724600112648,3.2419,2766.9,2766.1,3.61515]
[1724600113138,3.2419,2766.9,2766.1,3.61511]
[1724600114186,2.4959,2766.8,2765.9,3.61536]
[1724600114470,2.4959,2766.8,2765.6,2.2948]
[1724600114471,0.685605,2766.7,2765.6,2.2948]
[1724600114741,2.4959,2766.8,2766.3,7.22969]
[1724600115409,2.4959,2766.8,2766.4,3.61478]
[1724600115753,2.4959,2766.8,2766.3,3.61484]
[1724600116226,2.4959,2766.8,2766.1,3.61513]
[1724600116427,0.32419,2766.7,2766.1,3.61513]
[1724600116593,0.32419,2766.7,2765.9,7.2308]
[1724600116920,0.32419,2766.7,2765.9,3.61537]
[1724600116921,2.4959,2766.6,2765.9,3.61537]
[1724600117731,2.4959,2766.6,2765.7,3.61562]
[1724600118414,2.4959,2766.5,2765.7,3.61562]
[1724600118635,0.40046365,2766.4,2765.7,3.61562]
[1724600118991,0.40046365,2766.4,2765.7,7.23124]
[1724600119212,0.40046365,2766.4,2765.7,3.61562]
[1724600119418,2.4959,2766.3,2765.7,3.61562]
[1724600120327,2.4959,2766.3,2765.8,3.61549]
[1724600121493,2.93641002,2766.3,2765.7,3.61562]
[1724600122804,2.93641002,2766.3,2765.6,3.61584]
[1724600124891,2.93641002,2766.3,2764.7,2.86166036]
[1724600124892,2.4959,2766.2,2764.7,2.86166036]
[1724600125096,2.4959,2766.2,2765.1,3.61642]
[1724600125097,2.4959,2765.9,2765.1,3.61642]
[1724600125400,1.357131,2765.8,2765.1,3.61642]
[1724600126501,1.357131,2765.8,2765.2,3.61637]
[1724600127190,2.4959,2765.9,2764.8,3.0]
[1724600127191,2.4959,2765.9,2765.1,2.295]
[1724600127390,2.4959,2765.9,2765.5,7.23175]
[1724600127616,2.4959,2765.9,2765.5,3.61585]
[1724600128031,2.4959,2765.9,2764.8,3.0]
[1724600128032,2.2548,2765.5,2764.7,3.61691]
[1724600128205,0.587066,2765.4,2764.7,3.61691]
[1724600128409,2.2548,2765.5,2765.1,3.61639]
[1724600130640,2.2548,2765.5,2764.9,7.23335]
[1724600131319,2.2548,2765.5,2765.0,3.61658]
[1724600131825,2.2548,2765.5,2764.9,3.61665]
[1724600131826,2.2548,2765.5,2765.1,3.61645]
[1724600132192,3.61513,2766.2,2765.5,3.6159]
[1724600132193,2.2548,2765.9,2765.5,3.6159]
[1724600132393,2.2548,2765.9,2765.6,3.61577]
[1724600132653,2.2548,2765.9,2765.5,3.6159]
[1724600132852,2.2548,2766.2,2765.7,3.61564]
[1724600133153,0.269531,2766.1,2765.7,3.61564]
[1724600133312,1.50873654,2766.5,2765.5,2.295]
[1724600133313,2.2548,2766.5,2765.5,2.295]
[1724600133527,3.76353654,2766.9,2766.4,3.61469]
[1724600133859,2.2548,2766.9,2766.5,3.61467]
[1724600134064,1.50873654,2767.2,2766.6,3.61454]
[1724600134194,0.33962815,2767.2,2766.8,3.61427]
[1724600134393,0.33962815,2767.2,2766.7,3.6144]
[1724600134394,0.33962815,2767.2,2766.9,3.61414]
[1724600134649,0.33962815,2767.2,2766.7,7.22869]
[1724600134951,0.33962815,2767.2,2766.7,3.61429]
[1724600135091,0.33962815,2767.2,2766.5,3.61463]
[1724600135092,0.25944282,2767.1,2766.5,3.61463]
[1724600136060,2.2548,2767.3,2766.6,3.61452]
[1724600136194,2.2548,2767.3,2766.7,3.61437]
[1724600136397,3.76353654,2767.6,2766.9,3.61413]
[1724600136635,2.2548,2767.6,2766.9,3.61413]
[1724600137593,2.2548,2767.6,2767.0,3.61401]
[1724600137798,4.32864469,2767.6,2766.7,3.61432]
[1724600138235,6.43321815,2767.6,2766.5,3.61465]
[1724600138531,2.81990815,2767.6,2766.9,3.61413]
[1724600138736,2.81990815,2767.6,2766.9,3.61412]
[1724600139422,2.81990815,2767.6,2767.0,3.61401]
[1724600140922,2.81990815,2767.6,2766.9,3.61412]
[1724600141226,2.81990815,2767.6,2767.0,3.61401]
[1724600141403,2.81990815,2767.6,2766.9,3.61412]
[1724600141835,0.28199082,2767.5,2766.9,3.61412]
[1724600142059,0.28199082,2767.5,2766.7,3.61438]
[1724600142757,0.28199082,2767.5,2766.8,3.61427]
[1724600143254,2.2548,2767.6,2767.1,3.61386]
[1724600143906,2.2548,2767.6,2767.2,3.61374]
[1724600144107,2.2548,2767.6,2766.8,3.61425]
[1724600144957,2.2548,2767.6,2766.6,3.61443]
[1724600145372,2.2548,2767.6,2766.7,3.61439]
[1724600145674,0.5868,2767.5,2766.4,7.22944]
[1724600145880,2.2548,2767.4,2766.4,3.61469]
[1724600146019,5.86841,2767.4,2766.4,3.61469]
[1724600146219,5.86841,2767.4,2766.4,7.22941]
[1724600146467,5.86841,2767.4,2766.5,3.61462]
[1724600146663,0.586841,2767.3,2766.5,3.61462]
[1724600146825,0.586841,2767.3,2766.4,3.61469]
[1724600147030,2.4134,2767.2,2766.4,3.61469]
[1724600147975,2.4134,2767.2,2766.5,3.61466]
[1724600148184,2.4134,2767.2,2766.4,3.61469]
[1724600148329,1.0460241,2767.1,2766.4,3.61469]
[1724600149454,2.4134,2767.0,2766.1,3.61514]
[1724600149805,2.4134,2767.0,2766.2,3.61506]
[1724600150115,2.4134,2767.0,2766.2,3.61498]
[1724600150287,0.34594241,2766.9,2766.3,3.61481]
[1724600150615,2.4134,2767.0,2766.6,3.61448]
[1724600150754,2.4134,2767.0,2766.7,3.61431]
[1724600151577,2.4134,2767.0,2766.5,3.61456]
[1724600151795,2.4134,2767.0,2766.4,3.61474]
[1724600151988,2.4134,2767.0,2766.4,3.61472]
[1724600152280,2.4134,2767.0,2766.6,3.61454]
[1724600152966,2.4134,2767.0,2766.6,7.229]
[1724600153279,2.4134,2767.0,2766.6,3.61446]
[1724600154306,2.4134,2767.0,2766.4,3.61476]
[1724600154625,2.4134,2767.0,2766.4,3.61472]
[1724600155269,2.4134,2767.0,2766.5,3.61458]
[1724600155892,2.65474,2767.0,2766.4,3.61472]
[1724600159094,2.65474,2767.0,2766.4,7.22944]
[1724600159262,2.65474,2767.0,2766.5,3.61466]
[1724600160271,2.65474,2767.0,2766.4,3.61472]
[1724600160473,2.4134,2767.0,2766.6,3.61453]
[1724600161206,7.46,2767.3,2767.1,3.6138]
[1724600162187,2.4134,2767.6,2767.1,3.6138]
[1724600162593,2.4134,2767.6,2767.2,3.61368]
[1724600164590,0.24134,2767.5,2766.7,3.61435]
[1724600164940,2.4134,2767.4,2766.6,3.6145]
[1724600165802,2.4134,2767.3,2766.5,3.61455]
[1724600166111,0.602693,2767.2,2766.5,3.61455]
[1724600166488,0.602693,2767.2,2766.8,3.61428]
[1724600168125,0.602693,2767.2,2766.8,7.22848]
[1724600168327,2.4134,2767.3,2766.8,3.6142]
[1724600168714,2.4134,2767.3,2766.9,3.6141]
[1724600168930,2.4134,2767.3,2767.0,7.22791]
[1724600169132,7.46,2767.4,2766.6,2.4601]
[1724600169133,7.46,2767.4,2767.2,3.61364]
[1724600169428,14.6822,2767.7,2767.2,7.22732]
[1724600169429,2.4722,2767.7,2767.2,7.22732]
[1724600169633,2.4722,2767.7,2767.2,3.61364]
[1724600170191,2.71942,2767.7,2767.2,3.61364]
[1724600173238,2.4722,2767.7,2767.2,3.61364]
[1724600177838,3.98093654,2767.7,2767.1,3.61388]
[1724600178210,1.50873654,2767.6,2767.1,3.61388]
[1724600179138,1.50873654,2767.6,2766.9,3.61403]
[1724600179346,1.50873654,2767.5,2766.9,3.61403]
[1724600179930,4.360945,2767.7,2766.6,6.07456]
[1724600179931,2.4738,2767.3,2766.8,3.61427]
[1724600181808,1.50873654,2767.2,2766.3,2.3779]
[1724600182007,4.38079019,2767.3,2766.3,2.3779]
[1724600182205,4.38079019,2767.3,2766.6,3.61447]
[1724600182632,1.50873654,2767.2,2766.7,3.61433]
[1724600184153,1.50873654,2767.1,2766.7,3.61433]
[1724600184323,2.13604163,2767.2,2766.7,3.61433]
[1724600185144,2.13604163,2767.2,2766.2,3.61503]
[1724600185145,2.4738,2767.0,2766.2,3.61495]
[1724600185335,1.50873654,2766.9,2766.3,3.61485]
[1724600186409,4.36619427,2767.0,2766.2,3.61495]
[1724600186410,3.98253654,2767.0,2766.4,3.6148]
[1724600186707,5.37876013,2767.0,2766.4,3.6148]
[1724600186958,3.98253654,2767.0,2766.5,3.61464]
[1724600187880,1.50873654,2766.9,2766.3,3.61482]
[1724600188370,3.98253654,2767.0,2766.4,3.61477]
[1724600188653,1.50873654,2766.9,2766.5,3.61466]
[1724600188849,1.50873654,2766.9,2766.4,3.61477]
[1724600189944,3.98253654,2767.0,2766.4,3.61477]
[1724600190332,1.50873654,2766.9,2766.4,3.61477]
[1724600190843,1.50873654,2766.9,2766.2,7.22998]
[1724600191042,2.84215386,2766.9,2766.2,3.61498]
[1724600191241,2.84215386,2766.9,2765.7,0.33928391]
[1724600191449,3.88383654,2766.8,2766.1,3.61508]
[1724600191634,2.3751,2766.8,2766.1,3.61508]
[1724600191958,3.88383654,2766.8,2766.1,3.61508]
[1724600192135,3.44738477,2766.8,2766.1,3.61508]
[1724600192530,4.95612131,2766.8,2766.1,3.61508]
[1724600194352,4.95612131,2766.8,2766.0,3.61519]
[1724600194353,1.50873654,2766.7,2766.0,3.61519]
[1724600194757,2.3751,2766.6,2766.0,3.61519]
[1724600195178,2.83683984,2766.6,2765.8,3.61548]
[1724600195347,3.88383654,2766.5,2765.8,3.61548]
[1724600195685,3.88383654,2766.5,2765.8,7.23098]
[1724600195829,3.88383654,2766.5,2765.8,3.61548]
[1724600196171,2.3751,2766.4,2765.7,3.61562]
[1724600196528,2.3751,2766.4,2765.8,3.61547]
[1724600198047,2.3751,2766.4,2765.4,3.61604]
[1724600198254,2.3751,2766.3,2765.5,3.61596]
[1724600198648,2.3751,2766.3,2765.6,3.61581]
[1724600198837,3.18768416,2766.3,2765.6,3.61581]
[1724600201309,3.18768416,2766.3,2765.6,7.23156]
[1724600201668,3.18768416,2766.3,2765.6,3.61575]
[1724600202565,3.18768416,2766.3,2765.7,3.61571]
[1724600202769,2.3751,2766.3,2765.7,3.61571]
[1724600205219,2.3751,2766.3,2765.3,2.4588]
[1724600205511,2.3751,2766.3,2766.1,3.61518]
[1724600205744,2.3751,2766.3,2765.8,3.61551]
[1724600205922,2.3751,2766.3,2766.0,3.61532]
[1724600206717,2.3751,2766.3,2765.8,3.61551]
[1724600206718,2.3751,2766.3,2765.8,7.23098]
[1724600206861,2.3751,2766.3,2765.8,7.23097]
[1724600207264,2.3751,2766.3,2765.9,3.61542]
[1724600207620,2.3996,2766.7,2766.2,3.61506]
[1724600208119,2.3996,2766.7,2766.0,7.23049]
[1724600208268,2.3996,2766.7,2766.1,3.61516]
[1724600208616,2.3996,2766.7,2766.0,7.23047]
[1724600208875,3.08139835,2766.7,2766.0,7.23047]
[1724600209245,3.08139835,2766.7,2766.0,3.61523]
[1724600209732,3.08139835,2766.7,2766.1,3.61519]
[1724600209914,2.3905647,2766.7,2766.2,3.61504]
[1724600210123,2.3905647,2766.7,2766.0,7.23046]
[1724600210440,2.3905647,2766.7,2765.8,3.61551]
[1724600210640,2.3905647,2766.7,2766.1,3.61519]
[1724600211591,2.3905647,2766.7,2765.9,3.61533]
[1724600211807,2.3905647,2766.7,2766.0,0.723084]
[1724600212104,2.3905647,2766.7,2766.0,4.338384]
[1724600215966,2.3905647,2766.7,2765.9,3.61539]
[1724600216309,3.61433,2766.8,2765.8,3.61551]
[1724600216310,2.3996,2766.4,2765.8,3.61551]
[1724600217348,2.3996,2766.4,2765.9,3.61545]
[1724600218268,2.3996,2766.4,2765.8,3.6155]
[1724600218421,2.3996,2766.4,2765.9,0.36155]
[1724600219035,2.3996,2766.4,2765.9,3.97693]
[1724600219250,2.3996,2766.7,2765.9,2.64765]
[1724600219447,2.3996,2766.7,2765.9,0.36155]
[1724600219654,2.3996,2766.7,2766.1,3.61507]
[1724600220098,2.3996,2766.7,2766.1,7.23019]
[1724600220250,1.26627004,2766.6,2765.9,3.97699]
[1724600220466,2.3996,2766.5,2765.9,3.97699]
[1724600220988,2.3996,2766.5,2765.9,7.59237]
[1724600221191,2.3996,2766.5,2766.0,3.61531]
[1724600221501,2.3996,2766.5,2766.1,0.759224]
[1724600222544,1.26627004,2766.4,2765.9,3.97693]
[1724600222810,2.3996,2766.3,2765.9,3.61538]
[1724600223640,2.3996,2766.3,2765.7,7.23127]
[1724600223901,2.3996,2766.3,2765.6,1.26627004]
[1724600223902,1.26627004,2766.2,2765.6,3.61581]
[1724600224214,2.3996,2766.1,2765.6,3.61581]
[1724600224422,2.3996,2766.1,2765.7,0.723171]
[1724600225108,2.3996,2766.1,2765.7,4.338841]
[1724600226507,2.3996,2766.1,2765.7,7.954481]
[1724600227016,2.3996,2766.1,2765.7,4.338811]
[1724600227773,2.3996,2766.1,2765.9,3.61542]
[1724600228610,2.3996,2766.1,2765.8,0.4338811]
[1724600228790,2.3996,2766.1,2765.8,4.0494611]
[1724600229400,2.3996,2766.1,2765.7,4.338771]
[1724600229614,2.3996,2766.1,2765.7,3.6156]
[1724600232135,2.3996,2766.1,2765.7,3.5656]
[1724600232484,2.3996,2766.1,2765.5,1.26627004]
[1724600232840,1.89334051,2766.4,2766.0,3.61529]
[1724600232841,2.4564,2766.4,2766.0,3.61529]
[1724600233633,2.4564,2766.4,2766.0,3.61525]
[1724600233943,3.96513654,2766.4,2766.0,3.61525]
[1724600235690,8.96873654,2766.5,2766.0,3.61525]
[1724600235888,8.96873654,2766.5,2766.2,3.61497]
[1724600236031,1.50873654,2766.5,2766.2,3.61497]
[1724600238035,1.50873654,2766.5,2766.0,7.23046]
[1724600238232,1.50873654,2766.4,2766.0,3.6152]
[1724600239071,1.50873654,2766.5,2766.0,3.6152]
[1724600239271,1.50873654,2766.4,2766.0,7.23045]
[1724600239537,1.50873654,2766.5,2766.0,7.23045]
[1724600239826,1.50873654,2766.4,2766.0,3.6152]
[1724600241582,1.50873654,2766.4,2766.0,7.23044]
[1724600241786,1.50873654,2766.4,2766.1,3.61518]
[1724600242107,1.50873654,2766.5,2766.1,3.61518]
[1724600242692,1.50873654,2766.5,2766.2,3.61502]
[1724600242931,1.50873654,2766.6,2766.3,0.07229497]
[1724600243076,1.50873654,2766.8,2766.4,3.61479]
[1724600243269,1.50873654,2766.8,2766.4,4.102896]
[1724600243473,7.46,2766.9,2766.6,3.61454]
[1724600243684,7.46,2766.9,2766.8,3.61428]
[1724600243973,3.96513654,2767.1,2766.6,3.61443]
[1724600244521,1.50873654,2767.0,2766.4,7.22945]
[1724600245016,1.50873654,2767.0,2766.5,3.61465]
[1724600245199,3.96513654,2767.1,2766.6,3.61453]
[1724600245373,2.4564,2767.1,2766.6,3.61453]
[1724600245574,2.4564,2767.1,2766.7,3.6144]
[1724600246272,1.50873654,2767.3,2766.7,3.6144]
[1724600246702,1.50873654,2767.2,2766.7,3.6144]
[1724600247123,1.50873654,2767.3,2766.7,3.6144]
[1724600247284,13.07178429,2767.4,2766.7,3.6144]
[1724600247285,2.77500658,2767.2,2766.7,3.6144]
[1724600247492,1.26627004,2767.2,2766.7,3.6144]
[1724600251535,1.26627004,2767.0,2766.5,3.61456]
[1724600251737,1.26627004,2767.0,2766.5,7.22916]
[1724600252034,1.26627004,2767.0,2766.5,7.22914]
[1724600252629,1.26627004,2767.0,2766.6,3.61453]
[1724600253836,2.4504,2767.1,2766.6,3.61453]
[1724600254064,2.4504,2767.1,2766.7,3.6144]
[1724600258854,2.4504,2767.1,2766.7,7.22874]
[1724600259053,1.26627004,2767.2,2766.7,7.22874]
[1724600259054,1.26627004,2767.2,2766.7,8.197784]
[1724600259254,9.9104,2767.4,2766.7,2.23531404]
[1724600259479,9.9104,2767.4,2766.9,3.61407]
[1724600259683,7.46,2767.4,2766.9,3.61407]
[1724600259837,7.46,2767.4,2767.2,3.61364]
[1724600260043,1.50873654,2767.8,2767.3,3.61363]
[1724600260248,2.4504,2767.9,2767.5,3.61329]
[1724600260553,3.71894066,2767.9,2767.5,3.61329]
[1724600261154,1.26627004,2767.8,2767.3,3.61356]
[1724600261518,1.26627004,2767.8,2767.3,3.61355]
[1724600262040,3.71894066,2767.9,2767.3,3.61355]
[1724600265409,3.71894066,2767.9,2767.0,2.4617]
[1724600265574,0.37189407,2767.8,2767.0,2.4617]
[1724600265905,0.37189407,2767.8,2767.0,6.07564]
[1724600266203,0.37189407,2767.8,2767.1,3.61387]
[1724600266520,0.37189407,2767.8,2767.2,3.61368]
[1724600267664,0.37189407,2767.8,2767.2,3.61363]
[1724600267965,3.71894066,2767.9,2767.2,3.61363]
[1724600269111,3.71894066,2767.9,2767.3,3.6136]
[1724600271312,3.71894066,2767.9,2767.0,6.07564]
[1724600271521,2.2727,2767.8,2767.0,7.22788]
[1724600271744,0.71540807,2767.7,2767.0,3.61394]
[1724600272367,0.71540807,2767.7,2767.0,7.22788]
[1724600273111,0.71540807,2767.7,2767.0,3.61394]
[1724600273268,0.71540807,2767.7,2767.0,7.22788]
[1724600273469,0.71540807,2767.7,2767.0,7.22786]
[1724600274125,0.71540807,2767.7,2767.1,3.61387]
[1724600274294,2.2727,2767.8,2767.1,3.61387]
[1724600274623,2.2727,2767.8,2767.2,3.61374]
[1724600280450,2.2727,2767.8,2767.2,3.61368]
[1724600280646,2.2727,2767.8,2767.2,7.22735]
[1724600280826,2.2727,2767.8,2767.2,3.61367]
[1724600281146,0.50499772,2767.7,2767.2,3.61367]
[1724600284223,1.26525626,2767.5,2767.2,3.61367]
[1724600285631,1.26525626,2767.5,2767.2,7.22734]
[1724600285837,1.26525626,2767.5,2767.2,3.61367]
[1724600287611,1.26525626,2767.5,2767.2,7.22736]
[1724600289259,1.26525626,2767.5,2767.2,7.22734]
[1724600290162,1.26525626,2767.5,2767.2,3.61367]
[1724600290909,1.26525626,2767.5,2767.2,7.22735]
[1724600291116,1.26525626,2767.5,2767.3,3.61361]
[1724600292179,1.26525626,2767.5,2767.2,3.61367]
[1724600292782,1.26525626,2767.5,2767.0,3.61397]
[1724600292783,2.3698,2767.2,2766.4,3.61469]
[1724600293083,1.26525626,2767.3,2766.5,3.61464]
[1724600293084,1.26525626,2766.7,2766.5,3.61464]
[1724600293377,1.26525626,2766.9,2766.5,3.61464]
[1724600294869,1.26525626,2766.7,2766.5,3.61464]
[1724600296777,1.26525626,2766.7,2766.2,3.61499]
[1724600296972,1.26525626,2766.7,2766.4,3.61473]
[1724600297673,1.26525626,2766.9,2766.4,3.61473]
[1724600298486,1.26525626,2766.9,2766.4,7.22942]
[1724600299676,1.26525626,2766.9,2766.4,7.2294]
[1724600299881,1.26525626,2766.7,2766.4,3.61469]
[1724600300377,4.0,2766.5,2766.4,3.61469]
[1724600305772,4.0,2766.5,2766.2,4.219179]
[1724600306083,7.61295626,2766.5,2766.1,3.61519]
[1724600306253,5.26525626,2766.5,2766.1,3.61519]
[1724600306891,4.0,2766.5,2766.1,3.61519]
[1724600307036,4.0,2766.5,2766.2,3.61504]
[1724600308476,4.0,2766.5,2766.2,7.23008]
[1724600308668,4.0,2766.5,2766.3,3.6149]
[1724600309087,4.0,2766.5,2766.2,3.61504]
[1724600309088,4.0,2766.5,2766.2,7.23002]
[1724600309285,4.0,2766.5,2766.2,8.268647]
[1724600309647,4.0,2766.5,2766.2,4.653607]
[1724600310364,4.0,2766.5,2766.4,3.6148]
[1724600311474,4.0,2766.5,2766.4,4.88005626]
[1724600311678,4.0,2766.5,2766.4,10.92805626]
[1724600311679,3.75,2766.5,2766.4,10.92805626]
[1724600311884,3.75,2766.5,2766.4,12.12472459]
[1724600311885,2.67175673,2766.5,2766.4,12.12472459]
[1724600312391,2.67175673,2766.5,2766.4,15.73952459]
[1724600313157,2.67175673,2766.5,2766.4,16.07872209]
[1724600313559,1.63907805,2766.5,2766.4,16.07872209]
[1724600313856,1.54998098,2766.5,2766.4,19.62872209]
[1724600314389,1.26059279,2766.5,2766.4,19.62872209]
[1724600314893,0.98483811,2766.5,2766.4,19.62872209]
[1724600315696,0.6448361,2766.5,2766.4,19.28952459]
[1724600315895,0.6448361,2766.5,2766.4,19.62869855]
[1724600316249,0.58712645,2766.5,2766.4,19.62869855]
[1724600316444,0.30501065,2766.5,2766.4,18.36344229]
[1724600316703,0.30501065,2766.5,2766.4,19.62869855]
[1724600317568,0.30501065,2766.5,2766.4,19.28952459]
[1724600318865,0.30501065,2766.5,2766.4,19.62871108]
[1724600320677,0.30501065,2766.5,2766.4,19.28952459]
[1724600323566,0.30501065,2766.5,2766.4,22.90432459]
[1724600323817,0.30501065,2766.5,2766.4,19.28952459]
[1724600325119,2.358,2767.3,2767.2,3.61376]
[1724600325411,2.358,2767.3,2767.2,4.336538]
[1724600325586,2.358,2767.3,2767.2,3.61376]
[1724600327097,2.358,2767.3,2767.2,3.30874935]
[1724600329519,2.4239,2767.5,2767.3,3.61362]
[1724600329819,2.4239,2768.0,2767.7,3.61309]
[1724600330042,2.4239,2768.0,2767.3,1.26525626]
[1724600330043,2.4239,2768.0,2767.6,3.61316]
[1724600330181,1.26525626,2767.9,2767.6,3.61316]
[1724600332207,1.26525626,2767.9,2767.4,3.61343]
[1724600332524,1.26525626,2767.9,2767.2,2.3818]
[1724600332525,2.4239,2767.6,2767.2,3.61369]
[1724600332734,1.26525626,2767.5,2767.2,3.61369]
[1724600333843,2.4239,2767.6,2767.2,3.61368]
[1724600333990,2.4239,2767.6,2767.3,3.61353]
[1724600334193,2.4239,2767.8,2767.5,3.61336]
[1724600335147,2.4239,2767.8,2767.5,7.22665]
[1724600335290,2.4239,2767.8,2767.5,3.61329]
[1724600335494,2.4239,2767.8,2767.7,3.6131]
[1724600336021,2.4239,2768.0,2767.7,3.6131]
[1724600336633,1.26525626,2767.9,2767.7,3.6131]
[1724600338344,1.26525626,2767.9,2767.5,3.61325]
[1724600338691,1.26525626,2767.9,2767.3,3.61358]
[1724600338692,1.26525626,2767.7,2767.3,3.61358]
[1724600339935,1.26525626,2767.7,2767.3,7.22712]
[1724600340133,1.26525626,2767.7,2767.3,3.61354]
[1724600341136,1.26525626,2767.7,2767.4,3.61349]
[1724600341641,1.26525626,2767.7,2767.5,3.61334]
[1724600341800,1.26525626,2767.7,2767.3,3.61352]
[1724600342006,2.4239,2767.6,2767.3,3.61352]
[1724600342242,2.4239,2767.6,2767.4,3.61346]
[1724600342545,2.4239,2767.6,2767.5,3.61336]
[1724600343446,2.4239,2767.8,2767.5,3.61336]
[1724600343658,2.4239,2767.8,2767.5,3.6133]
[1724600344414,2.4239,2767.8,2767.5,3.61329]
[1724600344621,9.8839,2768.0,2767.5,3.61329]
[1724600344948,1.26525626,2767.9,2767.5,3.61329]
[1724600346999,2.4446,2767.8,2767.5,3.61329]
[1724600347803,2.4446,2767.8,2767.3,3.61357]
[1724600348012,2.4446,2767.8,2767.3,3.61351]
[1724600348307,2.4446,2767.8,2767.5,3.61336]
[1724600349648,1.26525626,2767.9,2767.5,3.61336]
[1724600350151,9.9046,2768.0,2767.5,3.61336]
[1724600352519,7.46,2768.0,2767.8,3.61297]
[1724600352907,3.15712485,2768.4,2767.9,3.61284]
[1724600352908,2.7802515,2768.4,2767.9,3.61284]
[1724600353913,1.51499524,2768.4,2768.0,3.6127]
[1724600354224,24.00646859,2768.5,2768.1,3.61257]
[1724600354225,23.62959524,2768.5,2768.1,3.61257]
[1724600354449,22.1146,2768.5,2768.1,3.61257]
[1724600354665,2.4446,2768.5,2768.1,3.6125]